Workbook

Sheet GOA Specs 2021 Sable options
A1: Table 1. Plan Team recommended OFL and ABC for Groundfish in the Gulf of Alaska (metric tons) for 2021 and 2022.
D2: 2019 | F2: Catch | H2: 2020 | J2: Catch | K2: Plan Team Rec 2021 | M2: Plan Team Rec 2022
A3: Species | B3: Area | C3: OFL | D3: ABC | E3: TAC | F3: 2019-12-31 | G3: OFL | H3: ABC | I3: TAC | J3: 2020-11-12 | K3: OFL | L3: ABC | M3: OFL | N3: ABC
A4: Pollock | B4: State GHL | C4: n/a | D4: 3,396 | E4: 0 | G4: n/a | H4: 2,712 | I4: 0 | K4: n/a | L4: 2,643 | M4: n/a | N4: 2,298
B5: W (610) | C5: n/a | D5: 24,875 | E5: 24,875 | F5: 21,868 | G5: n/a | H5: 19,175 | I5: 19,175 | J5: 19,005 | K5: n/a | L5: 18,477 | M5: n/a | N5: 16,067
B6: C (620) | C6: n/a | D6: 67,388 | E6: 67,388 | F6: 64,120 | G6: n/a | H6: 54,456 | I6: 54,456 | J6: 55,395 | K6: n/a | L6: 54,870 | M6: n/a | N6: 47,714
B7: C (630) | C7: n/a | D7: 34,443 | E7: 34,443 | F7: 24,661 | G7: n/a | H7: 26,597 | I7: 26,597 | J7: 25,538 | K7: n/a | L7: 24,320 | M7: n/a | N7: 21,149
B8: WYAK | C8: n/a | D8: 5,748 | E8: 5,748 | F8: 6,612 | G8: n/a | H8: 5,554 | I8: 5,554 | J8: 5,180 | K8: n/a | L8: 5,412 | M8: n/a | N8: 4,706
B9: Subtotal | C9: 194,230 | D9: =SUM(D4:D8) -> 135,850 | E9: =SUM(E5:E8) -> 132,454 | F9: =SUM(F5:F8) -> 117,261 | G9: 140,674 | H9: =SUM(H4:H8) -> 108,494 | I9: =SUM(I5:I8) -> 105,782 | J9: =SUM(J5:J8) -> 105,118 | K9: 123,455 | L9: =SUM(L4:L8) -> 105,722 | M9: 106,767 | N9: =SUM(N4:N8) -> 91,934
B10: EYAK/SEO | C10: 11,697 | D10: 8,773 | E10: 8,773 | F10: 0 | G10: 13,531 | H10: 10,148 | I10: 10,148 | J10: 0 | K10: 13,531 | L10: 10,148 | M10: 13,531 | N10: 10,148
B11: Total | C11: =C9+C10 -> 205,927 | D11: 144,623 | E11: 141,227 | F11: 117,261 | G11: 154,205 | H11: 118,642 | I11: 115,930 | J11: 105,118 | K11: =SUM(K9:K10) -> 136,986 | L11: =L9+L10 -> 115,870 | M11: =SUM(M9:M10) -> 120,298 | N11: =N9+N10 -> 102,082
A12: Pacific Cod | B12: W | C12: n/a | D12: 7,633 | E12: 5,343 | F12: 5,068 | G12: n/a | H12: 4,942 | I12: 2,076 | J12: 235 | K12: n/a | L12: 7,986 | M12: n/a | N12: 12,892
B13: C | C13: n/a | D13: 7,667 | E13: 5,750 | F13: 5,917 | G13: n/a | H13: 8,458 | I13: 3,806 | J13: 3,474 | K13: n/a | L13: 13,656 | M13: n/a | N13: 22,045
B14: E | C14: n/a | D14: 1,700 | E14: 1,275 | F14: 229 | G14: n/a | H14: 1,221 | I14: 549 | J14: 271 | K14: n/a | L14: 1,985 | M14: n/a | N14: 3,204
B15: Total | C15: 23,669 | D15: =SUM(D12:D14) -> 17,000 | E15: =SUM(E12:E14) -> 12,368 | F15: =SUM(F12:F14) -> 11,214 | G15: 17,794 | H15: =SUM(H12:H14) -> 14,621 | I15: =SUM(I12:I14) -> 6,431 | J15: =SUM(J12:J14) -> 3,980 | K15: 28,977 | L15: =SUM(L12:L14) -> 23,627 | M15: 46,587 | N15: =SUM(N12:N14) -> 38,141
B16: W | C16: n/a | D16: 1,581 | E16: 1,581 | F16: 1,545 | G16: n/a | H16: 2,278 | I16: 1,942 | J16: 1,424 | K16: n/a | M16: n/a
B17: C | C17: n/a | D17: 5,178 | E17: 5,178 | F17: 6,283 | G17: n/a | H17: 7,560 | I17: 6,445 | J17: 5,846 | K17: n/a | L17: see | M17: n/a | N17: see
A18: Sablefish | B18: WYAK | C18: n/a | D18: 1,828 | E18: 1,828 | F18: 1,807 | G18: n/a | H18: 2,521 | I18: 2,343 | J18: 1,789 | K18: n/a | L18: options | M18: n/a | N18: options
B19: SEO | C19: n/a | D19: 2,984 | E19: 2,984 | F19: 3,124 | G19: n/a | H19: 4,524 | I19: 3,663 | J19: 3,036 | K19: n/a | L19: below | M19: n/a | N19: below
A20: Alaska-wide OFL in 2020 | C20: 25,227 | D20: =SUM(D16:D19) -> 11,571 | E20: =SUM(E16:E19) -> 11,571 | F20: =SUM(F16:F19) -> 12,759 | G20: 50,481 | H20: =SUM(H16:H19) -> 16,883 | I20: =SUM(I16:I19) -> 14,393 | J20: =SUM(J16:J19) -> 12,095 | K20: 60,426 | L20: =SUM(L16:L19) -> 0 | M20: 70,710 | N20: =SUM(N16:N19) -> 0
A21: Shallow-Water Flatfish | B21: W | C21: n/a | D21: 25,620 | E21: 13,250 | F21: 74 | G21: n/a | H21: 23,849 | I21: 13,250 | J21: 22 | K21: n/a | L21: 24,151 | M21: n/a | N21: 24,460
B22: C | C22: n/a | D22: 25,731 | E22: 25,731 | F22: 2,791 | G22: n/a | H22: 27,732 | I22: 27,732 | J22: 4,210 | K22: n/a | L22: 28,082 | M22: n/a | N22: 28,442
B23: WYAK | C23: n/a | D23: 2,279 | E23: 2,279 | F23: 1 | G23: n/a | H23: 2,773 | I23: 2,773 | J23: 1 | K23: n/a | L23: 2,808 | M23: n/a | N23: 2,844
B24: EYAK/SEO | C24: n/a | D24: 1,957 | E24: 1,957 | F24: 1 | G24: n/a | H24: 1,109 | I24: 1,109 | J24: 1 | K24: n/a | L24: 1,123 | M24: n/a | N24: =1138-1 -> 1,137
B25: Total | C25: 68,309 | D25: =SUM(D21:D24) -> 55,587 | E25: =SUM(E21:E24) -> 43,217 | F25: =SUM(F21:F24) -> 2,867 | G25: 68,010 | H25: =SUM(H21:H24) -> 55,463 | I25: =SUM(I21:I24) -> 44,864 | J25: =SUM(J21:J24) -> 4,234 | K25: 68,841 | L25: =SUM(L21:L24) -> 56,164 | M25: 69,691 | N25: =SUM(N21:N24) -> 56,883
A26: Deep-Water Flatfish | B26: W | C26: n/a | D26: 416 | E26: 416 | F26: 2 | G26: n/a | H26: 226 | I26: 226 | J26: 1 | K26: n/a | L26: 225 | M26: n/a | N26: 225
B27: C | C27: n/a | D27: 3,443 | E27: 3,443 | F27: 95 | G27: n/a | H27: 1,948 | I27: 1,948 | J27: 99 | K27: n/a | L27: 1,914 | M27: n/a | N27: 1,914
B28: WYAK | C28: n/a | D28: 3,280 | E28: 3,280 | F28: 8 | G28: n/a | H28: 2,105 | I28: 2,105 | J28: 3 | K28: n/a | L28: 2,068 | M28: n/a | N28: 2,068
B29: EYAK/SEO | C29: n/a | D29: 2,362 | E29: 2,362 | F29: 4 | G29: n/a | H29: 1,751 | I29: 1,751 | J29: 4 | K29: n/a | L29: 1,719 | M29: n/a | N29: 1,719
B30: Total | C30: 11,434 | D30: =SUM(D26:D29) -> 9,501 | E30: =SUM(E26:E29) -> 9,501 | F30: =SUM(F26:F29) -> 109 | G30: 7,163 | H30: =SUM(H26:H29) -> 6,030 | I30: =SUM(I26:I29) -> 6,030 | J30: =SUM(J26:J29) -> 107 | K30: 7,040 | L30: =SUM(L26:L29) -> 5,926 | M30: 7,040 | N30: =SUM(N26:N29) -> 5,926
A31: Rex Sole | B31: W | C31: n/a | D31: 2,951 | E31: 2,951 | F31: 74 | G31: n/a | H31: 2,901 | I31: 2,901 | J31: 36 | K31: n/a | L31: 3,013 | M31: n/a | N31: 3,013
B32: C | C32: n/a | D32: 8,357 | E32: 8,357 | F32: 1,536 | G32: n/a | H32: 8,579 | I32: 8,579 | J32: 1,202 | K32: n/a | L32: 8,912 | M32: n/a | N32: 8,912
B33: WYAK | C33: n/a | D33: 1,657 | E33: 1,657 | F33: 2 | G33: n/a | H33: 1,174 | I33: 1,174 | J33: 1 | K33: n/a | L33: 1,206 | M33: n/a | N33: 1,206
B34: EYAK/SEO | C34: n/a | D34: 1,727 | E34: 1,727 | F34: 0 | G34: n/a | H34: 2,224 | I34: 2,224 | J34: 0 | K34: n/a | L34: 2,285 | M34: n/a | N34: 2,285
B35: Total | C35: 17,889 | D35: =SUM(D31:D34) -> 14,692 | E35: =SUM(E31:E34) -> 14,692 | F35: =SUM(F31:F34) -> 1,612 | G35: 18,127 | H35: =SUM(H31:H34) -> 14,878 | I35: =SUM(I31:I34) -> 14,878 | J35: =SUM(J31:J34) -> 1,239 | K35: 18,779 | L35: =SUM(L31:L34) -> 15,416 | M35: 18,779 | N35: =SUM(N31:N34) -> 15,416
A36: Arrowtooth Flounder | B36: W | C36: n/a | D36: 35,994 | E36: 14,500 | F36: 684 | G36: n/a | H36: 31,455 | I36: 14,500 | J36: 288 | K36: n/a | L36: 32,377 | M36: n/a | N36: 31,479
B37: C | C37: n/a | D37: 70,995 | E37: 70,995 | F37: 23,784 | G37: n/a | H37: 68,669 | I37: 68,669 | J37: 20,811 | K37: n/a | L37: 69,072 | M37: n/a | N37: 67,154
B38: WYAK | C38: n/a | D38: 15,911 | E38: 6,900 | F38: 88 | G38: n/a | H38: 10,242 | I38: 6,900 | J38: 46 | K38: n/a | L38: 8,380 | M38: n/a | N38: 8,147
B39: EYAK/SEO | C39: n/a | D39: 22,941 | E39: 6,900 | F39: 28 | G39: n/a | H39: 17,694 | I39: 6,900 | J39: 32 | K39: n/a | L39: 17,141 | M39: n/a | N39: 16,665
B40: Total | C40: 174,598 | D40: =SUM(D36:D39) -> 145,841 | E40: =SUM(E36:E39) -> 99,295 | F40: =SUM(F36:F39) -> 24,584 | G40: 153,017 | H40: =SUM(H36:H39) -> 128,060 | I40: =SUM(I36:I39) -> 96,969 | J40: =SUM(J36:J39) -> 21,177 | K40: 151,723 | L40: =SUM(L36:L39) -> 126,970 | M40: 147,515 | N40: =SUM(N36:N39) -> 123,445
A41: Flathead Sole | B41: W | C41: n/a | D41: 13,234 | E41: 8,650 | F41: 210 | G41: n/a | H41: 13,783 | I41: 8,650 | J41: 100 | K41: n/a | L41: 14,209 | M41: n/a | N41: 14,380
B42: C | C42: n/a | D42: 21,109 | E42: 15,400 | F42: 2,457 | G42: n/a | H42: 20,201 | I42: 15,400 | J42: 1,817 | K42: n/a | L42: 20,826 | M42: n/a | N42: 21,076
B43: WYAK | C43: n/a | D43: 2,016 | E43: 2,016 | F43: 0 | G43: n/a | H43: 2,354 | I43: 2,354 | J43: 0 | K43: n/a | L43: 2,427 | M43: n/a | N43: 2,456
B44: EYAK/SEO | C44: n/a | D44: 423 | E44: 423 | F44: 0 | G44: n/a | H44: 1,858 | I44: 1,858 | J44: 0 | K44: n/a | L44: 1,915 | M44: n/a | N44: =1938+1 -> 1,939
B45: Total | C45: 44,865 | D45: =SUM(D41:D44) -> 36,782 | E45: =SUM(E41:E44) -> 26,489 | F45: =SUM(F41:F44) -> 2,667 | G45: 46,572 | H45: =SUM(H41:H44) -> 38,196 | I45: =SUM(I41:I44) -> 28,262 | J45: =SUM(J41:J44) -> 1,917 | K45: 47,982 | L45: =SUM(L41:L44) -> 39,377 | M45: 48,534 | N45: =SUM(N41:N44) -> 39,851
A46: Pacific ocean perch | B46: W | C46: n/a | D46: 3,227 | E46: 3,227 | F46: 3,144 | G46: n/a | H46: 1,437 | I46: 1,437 | J46: 1,335 | K46: n/a | L46: 1,643 | M46: n/a | N46: 1,572
B47: C | C47: n/a | D47: 19,646 | E47: 19,646 | F47: 19,038 | G47: n/a | H47: 23,678 | I47: 23,678 | J47: 21,971 | K47: n/a | L47: 27,429 | M47: n/a | N47: 26,234
B48: WYAK | C48: n/a | D48: 3,296 | E48: 3,296 | F48: 3,288 | G48: n/a | H48: 1,470 | I48: 1,470 | J48: 1,466 | K48: n/a | L48: 1,705 | M48: n/a | N48: 1,631
B49: W/C/WYAK | C49: 31,113 | D49: =SUM(D46:D48) -> 26,169 | E49: =SUM(E46:E48) -> 26,169 | F49: =F46+F47+F48 -> 25,470 | G49: 31,567 | H49: =SUM(H46:H48) -> 26,585 | I49: =SUM(I46:I48) -> 26,585 | J49: =J46+J47+J48 -> 24,772 | K49: 36,563 | L49: =SUM(L46:L48) -> 30,777 | M49: 34,974 | N49: =SUM(N46:N48) -> 29,437
B50: SEO | C50: 2,838 | D50: 2,386 | E50: 2,386 | F50: 0 | G50: 5,525 | H50: 4,653 | I50: 4,653 | J50: 0 | K50: 6,414 | L50: 5,400 | M50: 6,136 | N50: 5,165
B51: Total | C51: =C49+C50 -> 33,951 | D51: 28,555 | E51: 28,555 | F51: 25,470 | G51: 37,092 | H51: 31,238 | I51: 31,238 | J51: 24,772 | K51: 42,977 | L51: 36,177 | M51: =SUM(M49:M50) -> 41,110 | N51: =N49+N50 -> 34,602
A52: Northern Rockfish | B52: W | C52: n/a | D52: 1,190 | E52: 1,190 | F52: 820 | G52: n/a | H52: 1,133 | I52: 1,133 | J52: 769 | K52: n/a | L52: 2,023 | M52: n/a | N52: 1,926
B53: C | C53: n/a | D53: 3,338 | E53: 3,338 | F53: 1,928 | G53: n/a | H53: 3,178 | I53: 3,178 | J53: 1,616 | K53: n/a | L53: 3,334 | M53: n/a | N53: 3,173
B54: E | C54: n/a | D54: 1 | E54: 0 | F54: 0 | G54: n/a | H54: 1 | I54: 0 | J54: 0 | K54: n/a | L54: 1 | M54: n/a | N54: 1
B55: Total | C55: 5,402 | D55: =D52+D53+D54 -> 4,529 | E55: =E52+E53 -> 4,528 | F55: =SUM(F52:F54) -> 2,748 | G55: 5,143 | H55: =H52+H53+H54 -> 4,312 | I55: =I52+I53 -> 4,311 | J55: =SUM(J52:J54) -> 2,385 | K55: 6,396 | L55: =SUM(L52:L54) -> 5,358 | M55: 6,088 | N55: =SUM(N52:N54) -> 5,100
A56: Shortraker Rockfish | B56: W | C56: n/a | D56: 44 | E56: 44 | F56: 58 | G56: n/a | H56: 52 | I56: 52 | J56: 6 | K56: n/a | L56: 52 | M56: n/a | N56: 52
B57: C | C57: n/a | D57: 305 | E57: 305 | F57: 232 | G57: n/a | H57: 284 | I57: 284 | J57: 186 | K57: n/a | L57: 284 | M57: n/a | N57: 284
B58: E | C58: n/a | D58: 514 | E58: 514 | F58: 412 | G58: n/a | H58: 372 | I58: 372 | J58: 301 | K58: n/a | L58: 372 | M58: n/a | N58: 372
B59: Total | C59: 1,151 | D59: 863 | E59: 863 | F59: =SUM(F56:F58) -> 702 | G59: 944 | H59: =SUM(H56:H58) -> 708 | I59: =SUM(I56:I58) -> 708 | J59: =SUM(J56:J58) -> 493 | K59: 944 | L59: =SUM(L56:L58) -> 708 | M59: 944 | N59: =SUM(N56:N58) -> 708
A60: Dusky Rockfish | B60: W | C60: n/a | D60: 781 | E60: 781 | F60: 198 | G60: n/a | H60: 776 | I60: 776 | J60: 231 | K60: n/a | L60: 355 | M60: n/a | N60: 346
B61: C | C61: n/a | D61: 2,764 | E61: 2,764 | F61: 2,196 | G61: n/a | H61: 2,746 | I61: 2,746 | J61: 1,879 | K61: n/a | L61: 5,993 | M61: n/a | N61: 5,834
B62: WYAK | C62: n/a | D62: 95 | E62: 95 | F62: 93 | G62: n/a | H62: 115 | I62: 115 | J62: 83 | K62: n/a | L62: 617 | M62: n/a | N62: 601
B63: EYAK/SEO | C63: n/a | D63: 60 | E63: 60 | F63: 4 | G63: n/a | H63: 39 | I63: 39 | J63: 2 | K63: n/a | L63: 136 | M63: n/a | N63: 132
B64: Total | C64: 4,521 | D64: =SUM(D60:D63) -> 3,700 | E64: =SUM(E60:E63) -> 3,700 | F64: =SUM(F60:F63) -> 2,491 | G64: 4,492 | H64: =SUM(H60:H63) -> 3,676 | I64: =SUM(I60:I63) -> 3,676 | J64: =SUM(J60:J63) -> 2,195 | K64: 8,655 | L64: =SUM(L60:L63) -> 7,101 | M64: 8,423 | N64: =SUM(N60:N63) -> 6,913
A65: Rougheye and Blackspotted Rockfish | B65: W | C65: n/a | D65: 174 | E65: 174 | F65: 78 | G65: n/a | H65: 168 | I65: 168 | J65: 4 | K65: n/a | L65: 168 | M65: n/a | N65: 170
B66: C | C66: n/a | D66: 550 | E66: 550 | F66: 440 | G66: n/a | H66: 455 | I66: 455 | J66: 183 | K66: n/a | L66: 456 | M66: n/a | N66: 459
B67: E | C67: n/a | D67: 704 | E67: 704 | F67: 230 | G67: n/a | H67: 586 | I67: 586 | J67: 190 | K67: n/a | L67: 588 | M67: n/a | N67: 592
B68: Total | C68: 1,715 | D68: =SUM(D65:D67) -> 1,428 | E68: =SUM(E65:E67) -> 1,428 | F68: =SUM(F65:F67) -> 748 | G68: 1,452 | H68: =SUM(H65:H67) -> 1,209 | I68: =SUM(I65:I67) -> 1,209 | J68: =SUM(J65:J67) -> 377 | K68: 1,456 | L68: =SUM(L65:L67) -> 1,212 | M68: 1,467 | N68: =SUM(N65:N67) -> 1,221
A69: Demersal shelf rockfish | B69: Total | C69: 411 | D69: 261 | E69: 261 | F69: 140 | G69: 375 | H69: 238 | I69: 238 | J69: 104 | K69: 405 | L69: 257 | M69: 405 | N69: 257
A70: Thornyhead Rockfish | B70: W | C70: n/a | D70: 326 | E70: 326 | F70: 127 | G70: n/a | H70: 326 | I70: 326 | J70: 50 | K70: n/a | L70: 352 | M70: n/a | N70: 352
B71: C | C71: n/a | D71: 911 | E71: 911 | F71: 383 | G71: n/a | H71: 911 | I71: 911 | J71: 208 | K71: n/a | L71: 910 | M71: n/a | N71: 910
B72: E | C72: n/a | D72: 779 | E72: 779 | F72: 267 | G72: n/a | H72: 779 | I72: 779 | J72: 201 | K72: n/a | L72: 691 | M72: n/a | N72: 691
B73: Total | C73: 2,688 | D73: =SUM(D70:D72) -> 2,016 | E73: =SUM(E70:E72) -> 2,016 | F73: =SUM(F70:F72) -> 777 | G73: 2,688 | H73: =SUM(H70:H72) -> 2,016 | I73: =SUM(I70:I72) -> 2,016 | J73: =SUM(J70:J72) -> 459 | K73: 2,604 | L73: =SUM(L70:L72) -> 1,953 | M73: 2,604 | N73: =SUM(N70:N72) -> 1,953
A74: Other Rockfish | B74: W/C | C74: n/a | D74: 1,737 | E74: 1,737 | F74: 693 | G74: n/a | H74: 940 | I74: 940 | J74: 647 | K74: n/a | L74: 940 | M74: n/a | N74: 940
B75: WYAK | C75: n/a | D75: 368 | E75: 368 | F75: 183 | G75: n/a | H75: 369 | I75: 369 | J75: 101 | K75: n/a | L75: 369 | M75: n/a | N75: 369
B76: EYAK/SEO | C76: n/a | D76: 3,489 | E76: 200 | F76: 81 | G76: n/a | H76: 2,744 | I76: 2,744 | J76: 95 | K76: n/a | L76: =2744 -> 2,744 | M76: n/a | N76: =2744 -> 2,744
B77: Total | C77: 7,356 | D77: =SUM(D74:D76) -> 5,594 | E77: =SUM(E74:E76) -> 2,305 | F77: =SUM(F74:F76) -> 957 | G77: 5,320 | H77: =SUM(H74:H76) -> 4,053 | I77: =SUM(I74:I76) -> 4,053 | J77: =SUM(J74:J76) -> 843 | K77: 5,320 | L77: =SUM(L74:L76) -> 4,053 | M77: 5,320 | N77: =SUM(N74:N76) -> 4,053
A78: Atka mackerel | B78: Total | C78: 6,200 | D78: 4,700 | E78: 3,000 | F78: 1,254 | G78: 6,200 | H78: 4,700 | I78: 3,000 | J78: 608 | K78: 6,200 | L78: 4,700 | M78: 6,200 | N78: 4,700
A79: Big Skate | B79: W | C79: n/a | D79: 504 | E79: 504 | F79: 133 | G79: n/a | H79: 758 | I79: 758 | J79: 32 | K79: n/a | L79: 758 | M79: n/a | N79: 758
B80: C | C80: n/a | D80: 1,774 | E80: 1,774 | F80: 1,117 | G80: n/a | H80: 1,560 | I80: 1,560 | J80: 815 | K80: n/a | L80: 1,560 | M80: n/a | N80: 1,560
B81: E | C81: n/a | D81: 570 | E81: 570 | F81: 102 | G81: n/a | H81: 890 | I81: 890 | J81: 188 | K81: n/a | L81: 890 | M81: n/a | N81: 890
B82: Total | C82: 3,797 | D82: =SUM(D79:D81) -> 2,848 | E82: =SUM(E79:E81) -> 2,848 | F82: =SUM(F79:F81) -> 1,352 | G82: 4,278 | H82: =SUM(H79:H81) -> 3,208 | I82: =SUM(I79:I81) -> 3,208 | J82: =SUM(J79:J81) -> 1,035 | K82: 4,278 | L82: =SUM(L79:L81) -> 3,208 | M82: 4,278 | N82: =SUM(N79:N81) -> 3,208
A83: Longnose Skate | B83: W | C83: n/a | D83: 149 | E83: 149 | F83: 60 | G83: n/a | H83: 158 | I83: 158 | J83: 21 | K83: n/a | L83: 158 | M83: n/a | N83: 158
B84: C | C84: n/a | D84: 2,804 | E84: 2,804 | F84: 633 | G84: n/a | H84: 1,875 | I84: 1,875 | J84: 360 | K84: n/a | L84: 1,875 | M84: n/a | N84: 1,875
B85: E | C85: n/a | D85: 619 | E85: 619 | F85: 318 | G85: n/a | H85: 554 | I85: 554 | J85: 255 | K85: n/a | L85: 554 | M85: n/a | N85: 554
B86: Total | C86: 4,763 | D86: =SUM(D83:D85) -> 3,572 | E86: =SUM(E83:E85) -> 3,572 | F86: =SUM(F83:F85) -> 1,011 | G86: 3,449 | H86: =SUM(H83:H85) -> 2,587 | I86: =SUM(I83:I85) -> 2,587 | J86: =SUM(J83:J85) -> 636 | K86: 3,449 | L86: =SUM(L83:L85) -> 2,587 | M86: 3,449 | N86: =SUM(N83:N85) -> 2,587
A87: Other Skates | B87: GOA-wide | C87: 1,845 | D87: 1,384 | E87: 1,384 | F87: 901 | G87: 1,166 | H87: 875 | I87: 875 | J87: 494 | K87: 1,166 | L87: 875 | M87: 1,166 | N87: 875
A88: Sculpins | B88: GOA-wide | C88: 6,958 | D88: 5,301 | E88: 5,301 | F88: 643 | G88: 6,932 | H88: 5,199 | I88: 5,199 | J88: 570 | K88: 0 | L88: 0 | M88: 0 | N88: 0
A89: Sharks | B89: GOA-wide | C89: 10,913 | D89: 8,184 | E89: 8,184 | F89: 1,997 | G89: 10,913 | H89: 8,184 | I89: 8,184 | J89: 1,581 | K89: 5,006 | L89: 3,755 | M89: 5,006 | N89: 3,755
A90: Octopuses | B90: GOA-wide | C90: 1,300 | D90: 975 | E90: 975 | F90: 336 | G90: 1,307 | H90: 980 | I90: 980 | J90: 78 | K90: 1,307 | L90: 980 | M90: 1,307 | N90: 980
A91: TOTAL | C91: =C11+C15+C20+C25+C30+C35+C40+C45+C51+C55+C59+C64+C68+C69+C73+C77+C78+C82+C86+C87+C88+C89+C90 -> 664,889 | D91: =D11+D15+D20+D25+D30+D35+D40+D45+D51+D55+D59+D64+D68+D69+D73+D77+D78+D82+D86+D87+D88+D89+D90 -> 509,507 | E91: 430,509 | F91: =F11+F15+F20+F25+F30+F35+F40+F45+F51+F55+F59+F64+F68+F69+F73+F77+F78+F82+F86+F87+F88+F89+F90 -> 214,600 | G91: 607,120 | H91: 465,956 | I91: 399,239 | J91: =J11+J15+J20+J25+J30+J35+J40+J45+J51+J55+J59+J64+J68+J69+J73+J77+J78+J82+J86+J87+J88+J89+J90 -> 186,497 | K91: 610,917 | L91: =L11+L15+L20+L25+L30+L35+L40+L45+L51+L55+L59+L64+L68+L69+L73+L77+L78+L82+L86+L87+L88+L89+L90 -> 456,274 | M91: =M11+M15+M20+M25+M30+M35+M40+M45+M51+M55+M59+M64+M68+M69+M73+M77+M78+M82+M86+M87+M88+M89+M90 -> 616,921 | N91: =N11+N15+N20+N25+N30+N35+N40+N45+N51+N55+N59+N64+N68+N69+N73+N77+N78+N82+N86+N87+N88+N89+N90 -> 452,656
A92: Sources: 2020 OFLs, ABCs, and TACs are from harvest specifications adopted by the Council in December 2019, 2020 catches through November 12, 2020 from AKR Catch Accounting. Note: State waters GHL for Pacific cod fisheries are not included within the Federal TAC, but they are accounted for, as to not exceed the ABC when added together.
A93: revised:
A94: 2020-11-20
I95: Plan Team recommended options for sablefish apportionments:
I97: Option: Author recommended, survey 5-year moving average apportionment
K98: OFL | L98: ABC | M98: OFL | N98: ABC
J99: W | K99: n/a | L99: 2,671 | M99: n/a | N99: 3,521
J100: C | K100: n/a | L100: 5,738 | M100: n/a | N100: 7,563
I101: Sablefish | J101: WYAK | K101: n/a | L101: 2,050 | M101: n/a | N101: 2,702
J102: SEO | K102: n/a | L102: =2809+1 -> 2,810 | M102: n/a | N102: 3,703
J103: Total | K103: n/a | L103: =SUM(L99:L102) -> 13,269 | M103: n/a | N103: =SUM(N99:N102) -> 17,489
I104: Alaska-wide | K104: 60,426 | M104: 70,710
I107: Option: Fixed (Status Quo) apportionment
K108: OFL | L108: ABC | M108: OFL | N108: ABC
J109: W | K109: n/a | L109: 2,339 | M109: n/a | N109: 3,083
J110: C | K110: n/a | L110: 7,629 | M110: n/a | N110: 10,056
I111: Sablefish | J111: WYAK | K111: n/a | L111: 2,773 | M111: n/a | N111: 3,656
J112: SEO | K112: n/a | L112: =4344+1 -> 4,345 | M112: n/a | N112: =5726-1 -> 5,725
J113: Total | K113: n/a | L113: =SUM(L109:L112) -> 17,086 | M113: n/a | N113: =SUM(N109:N112) -> 22,520
I114: Alaska-wide | K114: 60,426 | M114: 70,710

Sheet Sablefish Options
A1: Plan Team recommended options for sablefish apportionments:
A3: Option: Author recommended, survey 5-year moving average apportionment
C4: OFL | D4: ABC | E4: OFL | F4: ABC
B5: W | C5: n/a | D5: 2,671 | E5: n/a | F5: 3,521
B6: C | C6: n/a | D6: 5,738 | E6: n/a | F6: 7,563
A7: Sablefish | B7: WYAK | C7: n/a | D7: 2,050 | E7: n/a | F7: 2,702
B8: SEO | C8: n/a | D8: =2809+1 -> 2,810 | E8: n/a | F8: 3,703
B9: Total | C9: n/a | D9: =SUM(D5:D8) -> 13,269 | E9: n/a | F9: =SUM(F5:F8) -> 17,489
A10: Alaska-wide | C10: 60,426 | E10: 70,710
A13: Option: Fixed (Status Quo) apportionment
C14: OFL | D14: ABC | E14: OFL | F14: ABC
B15: W | C15: n/a | D15: 2,339 | E15: n/a | F15: 3,083
B16: C | C16: n/a | D16: 7,629 | E16: n/a | F16: 10,056
A17: Sablefish | B17: WYAK | C17: n/a | D17: 2,773 | E17: n/a | F17: 3,656
B18: SEO | C18: n/a | D18: =4344+1 -> 4,345 | E18: n/a | F18: =5726-1 -> 5,725
B19: Total | C19: n/a | D19: =SUM(D15:D18) -> 17,086 | E19: n/a | F19: =SUM(F15:F18) -> 22,520
A20: Alaska-wide | C20: 60,426 | E20: 70,710
